bitfinex/quotes_ETHUSD_20240610
["timestamp","ask_amount","ask_price","bid_price","bid_amount"]
[1717995336519,2.15081,3690.6,3690.1,35.0]
[1717995339519,0.796,3690.6,3690.1,35.0]
[1717995339862,1.35469,3690.9,3690.1,35.0]
[1717995339863,2.15069,3690.9,3690.1,35.0]
[1717995340145,2.15069,3690.9,3690.2,2.65030545]
[1717995340648,2.15069,3690.9,3690.0,2.3534]
[1717995340943,0.05816756,3690.8,3690.3,35.0]
[1717995341143,2.15069,3690.9,3690.3,35.0]
[1717995359778,1.35469,3690.9,3690.3,35.0]
[1717995360179,2.15069,3690.9,3690.3,35.0]
[1717995360373,2.15069,3690.9,3690.4,2.65030545]
[1717995360574,0.00607856,3691.3,3690.4,6.49724545]
[1717995360575,3.78072856,3691.3,3690.4,6.49724545]
[1717995360910,0.05821863,3690.8,3690.4,3.84694]
[1717995361071,0.796,3691.2,3690.5,35.0]
[1717995361269,0.796,3691.2,3690.6,2.65030545]
[1717995361785,0.796,3691.2,3690.4,3.84694]
[1717995361989,0.796,3691.2,3690.7,35.0]
[1717995362304,3.78072856,3691.3,3690.7,35.0]
[1717995362473,0.796,3691.2,3690.7,35.0]
[1717995369553,3.78072856,3691.3,3690.7,35.0]
[1717995369736,0.796,3691.2,3690.8,2.65030545]
[1717995370244,0.05655124,3691.1,3690.6,1.35477]
[1717995370411,0.05655124,3691.1,3690.9,35.0]
[1717995370611,0.796,3691.0,3690.9,35.0]
[1717995371711,3.1379,3691.0,3690.9,35.0]
[1717995372645,3.1379,3691.0,3689.9,3.84795179]
[1717995372646,2.3419,3690.9,3689.8,0.84795179]
[1717995372840,0.00607856,3691.3,3689.9,0.19782487]
[1717995372841,2.3419,3690.3,3689.9,0.19782487]
[1717995373047,2.3419,3690.3,3690.0,35.0]
[1717995373232,0.05609022,3690.2,3690.0,35.0]
[1717995373545,2.3419,3690.3,3690.0,35.0]
[1717995375454,4.58365,3690.5,3690.0,35.0]
[1717995375794,1.35485,3690.5,3690.0,35.0]
[1717995377070,1.35458,3691.2,3690.2,3.1763]
[1717995377279,2.15058,3691.2,3690.2,3.1763]
[1717995378391,1.35458,3691.2,3690.3,1.35489]
[1717995378567,0.796,3691.1,3690.3,1.35489]
[1717995378768,0.796,3691.1,3690.4,0.71814955]
[1717995379381,1.35458,3691.2,3690.4,0.71814955]
[1717995379382,1.35458,3691.2,3690.5,1.35482]
[1717995380464,0.05292638,3691.1,3690.6,35.0]
[1717995380817,1.35458,3691.2,3690.7,2.65030545]
[1717995381199,0.05292638,3691.1,3690.5,1.35482]
[1717995381497,0.05292638,3691.1,3690.8,35.0]
[1717995382030,0.796,3691.2,3690.8,35.0]
[1717995383121,2.25687856,3691.3,3690.8,35.0]
[1717995383290,2.25687856,3691.3,3690.9,1.35466]
[1717995383291,0.00607856,3691.3,3690.9,1.35466]
[1717995383491,0.00607856,3691.3,3691.0,2.65030545]
[1717995384515,0.00607856,3691.3,3691.1,1.3546]
[1717995386780,0.00607856,3691.3,3691.2,35.0]
[1717995425701,0.80207856,3691.3,3691.2,35.0]
[1717995427401,0.80207856,3691.3,3690.6,8.63477]
[1717995427588,0.80207856,3691.3,3690.7,4.02008713]
[1717995427787,0.80207856,3691.3,3691.2,35.0]
[1717995437619,0.80207856,3691.3,3690.7,4.02008713]
[1717995437987,0.80207856,3691.3,3690.8,35.0]
[1717995446334,0.796,3691.1,3690.8,35.0]
[1717995446535,0.796,3691.1,3690.9,1.97413643]
[1717995446735,0.796,3691.1,3690.7,1.02008713]
[1717995447106,0.796,3691.1,3690.8,35.0]
[1717995451448,0.796,3690.9,3690.8,35.0]
[1717995451623,1.35473,3690.8,3690.2,19.61]
[1717995451956,0.796,3690.5,3690.3,2.18129518]
[1717995452110,0.796,3690.5,3690.4,35.0]
[1717995464453,0.796,3690.7,3690.4,35.0]
[1717995465146,1.35473,3690.8,3690.4,35.0]
[1717995465336,0.796,3690.7,3690.4,35.0]
[1717995473963,1.35473,3690.8,3690.4,35.0]
[1717995474143,0.796,3690.7,3690.4,35.0]
[1717995479688,3.62232,3691.1,3690.4,35.0]
[1717995479868,0.796,3690.9,3690.4,35.0]
[1717995480551,0.796,3690.7,3690.4,35.0]
[1717995481253,1.35462,3691.1,3690.5,2.2629]
[1717995481688,0.84266868,3691.0,3690.5,2.2629]
[1717995481887,0.84266868,3691.0,3690.6,35.0]
[1717995482076,0.796,3691.0,3690.8,2.2629]
[1717995482891,0.04638504,3690.9,3690.8,2.2629]
[1717995483094,0.80207856,3691.3,3690.8,2.2629]
[1717995483273,0.04643628,3691.2,3690.9,35.0]
[1717995483466,0.80207856,3691.3,3690.9,35.0]
[1717995484372,0.80207856,3691.3,3690.9,37.65030545]
[1717995485590,0.796,3691.1,3690.9,37.65030545]
[1717995490903,0.00607856,3691.3,3690.9,37.65030545]
[1717995491100,0.796,3691.1,3690.9,37.65030545]
[1717995491616,0.796,3691.1,3690.9,2.65030545]
[1717995491914,0.04660297,3691.0,3690.8,37.2629]
[1717995492090,0.796,3691.1,3690.8,37.2629]
[1717995493236,0.00607856,3691.3,3690.8,37.2629]
[1717995495030,0.00607856,3691.3,3690.8,2.2629]
[1717995495323,0.04665576,3691.2,3690.8,2.2629]
[1717995495622,0.00607856,3691.3,3690.9,35.361766]
[1717995496623,0.796,3691.2,3690.9,35.361766]
[1717995496791,0.00607856,3691.3,3690.9,35.361766]
[1717995496991,0.796,3691.2,3690.9,35.361766]
[1717995498733,0.00607856,3691.3,3690.9,35.361766]
[1717995498909,0.796,3691.2,3690.9,35.361766]
[1717995499091,0.796,3691.2,3691.0,2.3247407]
[1717995499602,0.796,3691.2,3690.9,0.361766]
[1717995499844,0.00607856,3691.3,3691.1,35.0]
[1717995500166,0.796,3691.2,3691.1,35.0]
[1717995502254,0.796,3691.2,3690.9,0.361766]
[1717995502456,0.796,3691.2,3690.8,2.2629]
[1717995502834,0.796,3691.2,3690.9,35.0]
[1717995503666,0.00607856,3691.3,3690.6,1.35476]
[1717995503872,0.796,3690.8,3690.6,1.35476]
[1717995504362,0.796,3690.8,3690.7,35.0]
[1717995504570,0.796,3690.8,3690.7,37.45518276]
[1717995509054,0.796,3690.8,3690.7,35.0]
[1717995509252,0.796,3690.8,3690.5,3.0]
[1717995509468,0.796,3690.8,3690.1,7.28]
[1717995509469,0.796,3690.6,3690.2,3.0]
[1717995509655,0.796,3690.6,3690.3,35.0]
[1717995509990,0.796,3690.6,3690.4,3.0]
[1717995510485,0.796,3690.6,3690.2,3.0]
[1717995510650,0.796,3690.6,3690.3,35.0]
[1717995510856,0.796,3690.6,3690.4,3.0]
[1717995511064,0.796,3690.6,3690.2,2.33661]
[1717995511269,0.796,3690.6,3690.2,5.33661]
[1717995511557,0.796,3690.6,3690.3,35.0]
[1717995516410,2.15074,3690.8,3690.3,35.0]
[1717995517322,2.15074,3690.8,3690.3,36.45398253]
[1717995521395,2.15074,3690.8,3690.3,35.0]
[1717995526235,1.35474,3690.8,3690.3,35.0]
[1717995526419,0.796,3690.6,3690.3,35.0]
[1717995549957,2.15074,3690.8,3690.3,35.0]
[1717995561669,1.35474,3690.8,3690.3,35.0]
[1717995561852,0.796,3690.7,3690.3,35.0]
[1717995566484,3.1627,3690.7,3690.3,35.0]
[1717995601295,1.35474,3690.8,3690.3,35.0]
[1717995601933,1.35474,3690.8,3690.3,37.2220376]
[1717995602093,2.15074,3690.8,3690.3,37.2220376]
[1717995602793,1.35474,3690.8,3690.3,37.2220376]
[1717995602991,2.15074,3690.8,3690.3,37.2220376]
[1717995603519,2.2947,3690.7,3690.3,37.2220376]
[1717995604421,0.796,3690.6,3690.3,35.0]
[1717995604731,3.8338,3690.3,3689.7,8.12795179]
[1717995604915,3.8338,3690.3,3689.6,1.35515]
[1717995604916,0.796,3690.1,3689.6,1.35515]
[1717995605236,0.796,3690.1,3689.8,35.0]
[1717995607912,4.6298,3690.3,3689.8,35.0]
[1717995610665,1.3549,3690.3,3689.8,35.0]
[1717995610965,1.3549,3690.3,3689.9,2.4387]
[1717995611248,1.35479,3690.6,3689.9,2.4387]
[1717995611547,1.35468,3690.9,3690.0,36.78108871]
[1717995611773,1.35468,3690.9,3690.1,3.0]
[1717995612413,1.35468,3690.9,3690.2,36.35492]
[1717995613696,3.217,3691.0,3690.2,36.35492]
[1717995615793,0.796,3690.8,3690.2,36.35492]
[1717995616001,0.796,3690.8,3690.3,2.65030545]
[1717995616507,0.796,3690.8,3690.2,1.35492]
[1717995616694,0.796,3690.8,3690.4,35.0]
[1717995617069,1.35468,3690.9,3690.4,35.0]
[1717995617291,0.796,3690.8,3690.4,35.0]
[1717995619066,1.35476,3690.7,3690.4,35.0]
[1717995619269,2.3819,3690.5,3690.0,3.0]
[1717995619470,0.03837846,3690.4,3690.0,3.75334886]
[1717995619698,0.03837846,3690.4,3690.1,35.0]
[1717995620611,2.3819,3690.5,3690.1,35.0]
[1717995627577,0.796,3690.6,3690.1,35.0]
[1717995627777,0.796,3690.6,3690.1,37.65030545]
[1717995628274,1.35476,3690.7,3690.1,37.65030545]
[1717995630795,3.80886,3690.7,3690.1,37.65030545]
[1717995631424,0.796,3690.6,3690.1,35.0]
[1717995647657,3.80886,3690.7,3690.1,35.0]
[1717995647862,0.796,3690.6,3690.1,35.0]
[1717995649464,3.80886,3690.7,3690.1,35.0]
[1717995649664,4.60486,3690.7,3690.1,35.0]
[1717995651367,1.35465,3691.0,3690.1,39.00525545]
[1717995651671,0.796,3690.9,3690.3,1.3549]
[1717995652332,0.03652828,3690.8,3690.4,35.0]
[1717995652563,0.796,3690.9,3690.4,37.65030545]
[1717995663576,1.35463,3691.1,3690.4,37.65030545]
[1717995663776,0.796,3690.9,3690.5,2.65030545]
[1717995664277,0.03558016,3690.8,3690.4,2.65030545]
[1717995664480,0.03558016,3690.8,3690.5,35.0]
[1717995664845,0.796,3690.9,3690.5,35.0]
[1717995666994,0.796,3690.9,3690.3,1.3549]
[1717995667477,0.03542111,3690.8,3690.4,35.0]
[1717995667839,0.796,3690.9,3690.4,35.0]
[1717995668040,0.796,3690.9,3690.4,36.36950783]
[1717995668474,1.35463,3691.1,3690.4,36.36950783]
[1717995668671,0.796,3691.0,3690.4,36.36950783]
[1717995674560,1.35463,3691.1,3690.4,36.36950783]
[1717995674760,0.796,3691.0,3690.4,36.36950783]
[1717995675062,0.796,3691.0,3690.5,2.65030545]
[1717995675693,0.03354718,3690.9,3690.6,35.0]
[1717995676073,0.796,3691.0,3690.6,35.0]
[1717995682103,3.80533,3691.1,3690.6,35.0]
[1717995682266,0.796,3690.9,3690.6,35.0]
[1717995683102,0.796,3690.7,3690.6,35.0]
[1717995685504,2.15071,3690.8,3690.6,35.0]
[1717995691790,4.58871,3690.8,3690.6,35.0]
[1717995695437,0.796,3690.7,3690.6,35.0]
[1717995696597,0.796,3690.7,3690.1,7.28]
[1717995696827,0.796,3690.7,3690.1,8.43924697]
[1717995697007,0.796,3690.7,3690.2,35.0]
[1717995705013,0.796,3690.7,3690.6,0.07017]
[1717995705519,0.82943692,3690.7,3690.6,0.07017]
[1717995705708,0.82943692,3690.7,3690.6,35.07017]
[1717995706229,0.796,3690.7,3690.6,35.07017]
[1717995708703,0.796,3690.7,3690.6,0.07017]
[1717995708909,1.254871,3690.7,3690.6,0.07017]
[1717995709108,1.28719287,3690.7,3690.6,0.07017]
[1717995709409,1.254871,3690.7,3690.6,0.07017]
[1717995714726,0.79410332,3690.7,3690.6,0.07017]
[1717995718647,3.79271,3690.8,3690.6,0.07017]
[1717995718812,0.796,3690.7,3690.6,0.07017]
[1717995721158,3.27833799,3690.7,3690.6,0.07017]
[1717995727529,3.2471,3690.7,3690.6,0.07017]
[1717995727766,3.73551533,3690.7,3690.6,0.07017]
[1717995727965,3.76670224,3690.7,3690.6,0.07017]
[1717995732931,3.73551533,3690.7,3690.6,0.07017]
[1717995733144,3.76555524,3690.7,3690.6,0.07017]
[1717995746964,3.73551533,3690.7,3690.6,0.07017]
[1717995754780,4.32102934,3690.7,3690.6,0.07017]
[1717995755590,5.44057039,3690.7,3690.6,0.07017]
[1717995755802,4.32106316,3690.7,3690.6,0.07017]
[1717995756595,4.87106316,3690.7,3690.6,0.07017]
[1717995757226,7.72206316,3690.7,3690.6,0.07017]
[1717995758721,7.72212608,3690.7,3690.6,0.07017]
[1717995762226,5.27102608,3690.7,3690.6,0.07017]
[1717995762387,9.42418922,3690.7,3690.6,0.07017]
[1717995762826,7.72052608,3690.7,3690.6,0.07017]
[1717995764230,7.7205091,3690.7,3690.6,0.07017]
[1717995765046,7.13491533,3690.7,3690.6,0.07017]
[1717995765223,7.72051208,3690.7,3690.6,0.07017]
[1717995767128,2.42001208,3690.7,3690.6,0.07017]
[1717995767429,1.28441533,3690.7,3690.6,0.07017]
[1717995767626,1.87001208,3690.7,3690.6,0.07017]
[1717995768435,1.28441533,3690.7,3690.6,0.07017]
[1717995768731,0.796,3690.7,3690.6,0.07017]
[1717995769518,1.63705327,3690.8,3690.6,0.07017]
[1717995769999,0.796,3690.7,3690.6,0.07017]
[1717995771812,1.63705327,3690.8,3690.6,0.07017]
[1717995772010,0.796,3690.7,3690.6,0.07017]
[1717995772819,1.63705327,3690.8,3690.6,0.319817]
[1717995773019,0.796,3690.7,3690.6,2.51627]
[1717995779042,0.796,3690.7,3690.6,0.07017]
[1717995783380,2.49912942,3690.7,3690.6,0.07017]
[1717995783884,0.796,3690.7,3690.6,0.07017]
[1717995788879,2.49918021,3690.7,3690.6,0.07017]
[1717995791495,5.58306492,3690.7,3690.6,0.07017]
[1717995792584,3.87988471,3690.7,3690.6,0.07017]
[1717995792786,3.2943,3690.7,3690.6,0.07017]
[1717995792989,5.58305027,3690.7,3690.6,0.07017]
[1717995793159,4.99744642,3690.7,3690.6,0.07017]
[1717995793359,5.58301988,3690.7,3690.6,0.07017]
[1717995795304,3.87987346,3690.7,3690.6,0.07017]
[1717995797391,5.58313375,3690.7,3690.6,0.07017]
[1717995797910,3.87987346,3690.7,3690.6,0.07017]
[1717995798406,5.58312781,3690.7,3690.6,0.07017]
[1717995798587,3.87987346,3690.7,3690.6,0.07017]
[1717995798993,5.58314905,3690.7,3690.6,0.07017]
[1717995799405,3.87987346,3690.7,3690.6,0.07017]
[1717995800016,5.58315558,3690.7,3690.6,0.07017]
[1717995800515,3.87987346,3690.7,3690.6,0.07017]
[1717995800883,5.58323244,3690.7,3690.6,0.07017]
[1717995801823,4.99765898,3690.7,3690.6,0.07017]
[1717995802128,3.2943,3690.7,3690.6,0.07017]
[1717995802305,4.99756724,3690.7,3690.6,0.07017]
[1717995803182,5.58315991,3690.7,3690.6,0.07017]
[1717995803384,4.99756724,3690.7,3690.6,0.07017]
[1717995803818,5.58315603,3690.7,3690.6,0.07017]
[1717995809027,3.87988879,3690.7,3690.6,0.07017]
[1717995810046,5.58336323,3690.7,3690.6,0.07017]
[1717995810397,6.13336323,3690.7,3690.6,0.07017]
[1717995810622,7.28088879,3690.7,3690.6,0.07017]
[1717995812803,8.98441637,3690.7,3690.6,0.07017]
[1717995813014,6.48611637,3690.7,3690.6,0.07017]
[1717995815646,8.45361854,3690.7,3690.6,0.07017]
[1717995816235,6.48611637,3690.7,3690.6,0.07017]
[1717995816422,8.45365203,3690.7,3690.6,0.07017]
[1717995818414,8.45362875,3690.7,3690.6,0.07017]
[1717995819554,6.75010117,3690.7,3690.6,0.07017]
[1717995819855,8.45408709,3690.7,3690.6,0.07017]
[1717995820557,6.75010117,3690.7,3690.6,0.07017]
[1717995821046,8.45438007,3690.7,3690.6,0.07017]
[1717995821231,8.45431455,3690.7,3690.6,0.07017]
[1717995821414,6.75003565,3690.7,3690.6,0.07017]
[1717995823957,6.75005646,3690.7,3690.6,0.07017]
[1717995824128,8.73804003,3690.7,3690.6,0.07017]
[1717995826464,6.75005646,3690.7,3690.6,0.07017]
[1717995826822,8.74129823,3690.7,3690.6,0.07017]
[1717995827141,8.74129682,3690.7,3690.6,0.07017]
[1717995827436,6.75005505,3690.7,3690.6,0.07017]
[1717995828459,4.78258491,3690.7,3690.6,0.07017]
[1717995828666,6.75007038,3690.7,3690.6,0.07017]
[1717995829066,8.74138085,3690.7,3690.6,0.07017]
[1717995829439,6.75007038,3690.7,3690.6,0.07017]
[1717995829778,6.75007174,3690.7,3690.6,0.07017]
[1717995833168,6.75007306,3690.7,3690.6,0.07017]
[1717995834969,4.20584,3690.5,3689.7,2.334]
[1717995835185,2.15108,3689.8,3689.7,2.334]
[1717995835651,2.43311453,3689.8,3689.7,2.334]
[1717995838465,2.43311453,3689.8,3689.5,2.4519]
[1717995838635,0.796,3689.6,3689.5,2.4519]
[1717995840968,1.3455742,3689.6,3689.5,2.4519]
[1717995841167,1.3455742,3689.6,3688.8,2.3018]
[1717995841375,0.796,3688.9,3688.8,2.3018]
[1717995842346,2.15144,3688.9,3688.8,2.3018]
[1717995842768,2.15144,3688.9,3688.8,37.3018]
[1717995843073,2.15144,3688.9,3688.8,35.0]
[1717995843277,2.15144,3688.9,3688.8,37.3848]
[1717995845573,2.15144,3688.9,3688.8,2.3848]
[1717995847972,2.12905304,3690.2,3688.8,2.3848]
[1717995848177,0.796,3689.9,3689.0,2.3371]
[1717995848375,0.796,3689.7,3689.1,35.0]
[1717995848678,0.796,3689.7,3689.3,2.3371]
[1717995849380,1.35508,3689.8,3689.5,2.3378]
[1717995849566,0.796,3689.7,3689.5,2.3378]
[1717995850179,0.796,3689.7,3689.5,37.3378]
[1717995851657,0.796,3689.7,3689.5,2.3378]
[1717995851983,0.796,3689.7,3689.5,2.57158]
[1717995852191,1.35508,3689.8,3689.5,2.57158]
[1717995852490,0.796,3689.7,3689.5,2.57158]
[1717995852647,1.35508,3689.8,3689.5,2.57158]
[1717995852848,0.796,3689.7,3689.5,2.57158]
[1717995853082,0.796,3689.7,3689.6,0.257158]
[1717995855563,1.35516,3689.6,3689.5,2.3378]
[1717995858870,2.15116,3689.6,3689.5,2.3378]
[1717995861772,1.35516,3689.6,3689.5,2.3378]
[1717995861976,2.15116,3689.6,3689.5,2.3378]
[1717995863992,2.15116,3689.6,3689.5,37.3378]
[1717995865291,1.35526,3689.4,3688.9,7.28]
[1717995865496,0.796,3689.2,3689.0,0.97088]
[1717995865659,0.796,3689.2,3689.1,35.0]
[1717995866072,0.796,3689.2,3689.1,37.4288]
[1717995866699,2.15126,3689.4,3689.1,37.4288]
[1717995866873,2.15126,3689.4,3689.2,2.10846965]
[1717995869198,2.15126,3689.4,3689.2,35.0]
[1717995874312,2.15126,3689.4,3688.9,7.28]
[1717995874510,0.796,3689.0,3688.9,7.28]
[1717995874870,0.796,3689.0,3688.9,42.28]
[1717995879791,0.796,3689.0,3688.9,35.0]
[1717995886991,2.15132,3689.2,3688.9,35.0]
[1717995894539,2.15132,3689.2,3688.9,37.65030545]
[1717995901323,2.15132,3689.2,3688.9,35.0]
[1717995903055,0.796,3689.0,3688.9,35.0]
[1717995916357,0.796,3689.0,3688.6,2.426]
[1717995916757,0.796,3689.0,3688.7,35.0]
[1717995919662,2.15145,3688.8,3688.3,7.28]
[1717995920275,2.15145,3688.8,3688.4,35.0]
[1717995920643,2.15145,3688.8,3688.4,37.3706]
[1717995924279,2.15145,3688.8,3688.4,35.0]
[1717995927898,1.35545,3688.8,3688.4,35.0]
[1717995928053,1.35545,3688.8,3688.5,0.95135752]
[1717995930485,0.796,3689.0,3688.5,0.95135752]
[1717995931187,0.796,3689.0,3688.2,2.4346]
[1717995931560,0.08107136,3688.9,3688.3,35.0]
[1717995932006,0.796,3689.0,3688.3,35.0]
[1717995936224,0.796,3688.8,3688.3,35.0]
[1717995937385,1.35542,3688.9,3688.3,35.62312439]
[1717995937597,0.796,3688.7,3688.3,35.62312439]
[1717995943780,2.15163,3688.4,3687.8,7.28]
[1717995944011,0.796,3688.2,3687.5,3.09865179]
[1717995944313,0.796,3688.2,3687.6,35.0]
[1717995944516,0.796,3688.2,3687.7,2.65030545]
[1717995944921,0.796,3688.2,3687.5,2.2507]
[1717995945083,0.796,3688.2,3687.8,35.0]
[1717995945721,2.1517,3688.2,3687.8,35.0]
[1717995961249,1.3557,3688.2,3687.8,35.0]
[1717995963405,0.796,3688.3,3687.9,2.3774]
[1717995963607,2.15157,3688.5,3688.0,2.65030545]
[1717995964239,1.35557,3688.5,3688.0,2.65030545]
[1717995964413,0.28126674,3688.6,3688.0,2.65030545]
[1717995964742,0.796,3688.7,3688.0,2.65030545]
[1717995965241,1.35546,3688.8,3688.0,2.65030545]
[1717995965443,1.35546,3688.8,3688.1,5.12620545]
[1717995965806,0.28128799,3689.0,3688.2,1.35565]
[1717995966013,1.07728799,3689.0,3688.3,2.4759]
[1717995966219,0.06857251,3688.9,3688.3,2.4759]
[1717995966402,0.06857251,3688.9,3688.4,35.0]
[1717995966607,0.06857251,3688.9,3688.5,2.65030545]
[1717995966909,1.07728799,3689.0,3688.5,2.65030545]
[1717995967102,0.06867797,3688.9,3688.3,2.4759]
[1717995967329,0.06867797,3688.9,3688.4,35.0]
[1717995967534,1.07728799,3689.0,3688.4,35.0]
[1717995967736,0.06867797,3688.9,3688.4,35.0]
[1717995967908,1.07728799,3689.0,3688.4,35.0]
[1717995968117,0.06867478,3688.9,3688.5,1.08066551]
[1717995968319,1.07728799,3689.0,3688.5,1.08066551]
[1717995968521,0.06867478,3688.9,3688.3,2.4759]
[1717995968716,0.06867478,3688.9,3688.4,35.0]
[1717995968923,1.07728799,3689.0,3688.4,35.0]
[1717995969149,0.06867478,3688.9,3688.4,35.0]
[1717995969361,1.07728799,3689.0,3688.5,2.65030545]
[1717995969548,0.06867478,3688.9,3688.5,2.65030545]
[1717995969749,0.06867478,3688.9,3688.3,2.4759]
[1717995969959,0.06867478,3688.9,3688.4,35.0]
[1717995970139,1.07728799,3689.0,3688.4,35.0]
[1717995970328,0.06867478,3688.9,3688.4,35.0]
[1717995970656,1.07728799,3689.0,3688.4,35.0]
[1717995970860,1.07728799,3689.0,3688.5,2.65030545]
[1717995971335,1.07728799,3689.0,3688.3,2.4759]
[1717995971532,0.0663824,3688.9,3688.4,35.0]
[1717995971740,1.07728799,3689.0,3688.4,35.0]
[1717995976670,0.796,3689.0,3688.4,35.0]
[1717995983108,2.3443,3688.9,3688.4,35.0]
[1717995983265,2.3443,3688.9,3688.4,37.65030545]
[1717995984448,0.796,3688.7,3688.4,35.0]
[1717995986179,0.796,3688.7,3688.2,1.35565]
[1717995986386,0.06635264,3688.6,3688.2,1.35565]
[1717995986773,0.06635264,3688.6,3688.3,35.0]
[1717995986985,0.796,3688.7,3688.3,35.0]
[1717995987181,0.796,3688.7,3688.3,37.65030545]
[1717995990400,0.796,3688.7,3688.3,35.0]
[1717995993880,2.4373,3688.6,3688.3,35.0]
[1717995995083,2.4373,3688.6,3687.9,1.35576]
[1717995995639,2.4373,3688.6,3688.0,35.0]
[1717995997316,0.796,3688.5,3688.0,35.0]
[1717995997519,0.796,3688.5,3688.1,2.65030545]
[1717995997909,0.796,3688.5,3687.9,1.35576]
[1717995998094,0.796,3688.5,3688.2,35.0]
[1717996005795,0.796,3688.5,3687.7,10.5630247]
[1717996006339,0.796,3688.5,3687.8,35.0]
[1717996006507,0.796,3688.5,3687.9,3.0]
[1717996006709,0.796,3688.5,3688.0,2.65030545]
[1717996006922,0.796,3688.5,3687.9,3.0]
[1717996007128,0.796,3688.5,3688.1,35.0]
[1717996017758,0.796,3688.3,3688.1,35.0]
[1717996020661,0.796,3688.3,3687.8,1.35581]
[1717996020858,0.796,3688.3,3687.8,2.30626059]
[1717996021159,0.796,3688.3,3687.9,35.0]
[1717996025652,2.4257,3688.2,3687.9,35.0]
[1717996037562,3.7814,3688.2,3687.9,35.0]
[1717996040578,3.7814,3688.2,3687.7,0.2830247]
[1717996040983,0.05940086,3688.1,3687.8,35.0]
[1717996041383,3.7814,3688.2,3687.8,35.0]
[1717996042787,1.3557,3688.2,3687.8,35.0]
[1717996043099,1.3557,3688.2,3687.8,35.82516726]
[1717996058525,2.2687,3688.4,3687.8,35.82516726]
[1717996059120,2.15158,3688.5,3687.8,35.82516726]
[1717996073939,1.35558,3688.5,3687.8,35.82516726]
[1717996077148,1.35558,3688.5,3687.9,5.3185]
[1717996077444,3.67556,3688.8,3688.0,4.00604545]
[1717996077647,3.67556,3688.8,3688.0,1.35574]
[1717996077810,0.05644388,3688.7,3688.1,35.0]
[1717996078212,3.67556,3688.8,3688.1,35.0]
[1717996078410,3.67556,3688.8,3688.2,2.65030545]
[1717996078920,3.67556,3688.8,3688.0,1.35574]
[1717996079129,0.05644388,3688.7,3688.3,35.0]
[1717996079640,3.67556,3688.8,3688.3,35.0]
[1717996081848,4.47156,3688.8,3688.3,35.0]
[1717996082216,4.47156,3688.8,3688.3,2.15597925]
[1717996082415,4.47156,3688.8,3688.0,1.35574]
[1717996082751,0.05653337,3688.7,3688.1,35.0]
[1717996083267,4.47156,3688.8,3688.1,35.0]
[1717996094146,0.796,3688.6,3688.1,35.0]
[1717996094460,2.4783,3688.5,3688.1,35.0]
[1717996094676,2.4783,3688.5,3688.2,2.65030545]
[1717996095173,2.4783,3688.5,3688.0,1.35574]
[1717996095467,0.05594846,3688.4,3688.1,35.0]
[1717996095768,2.4783,3688.5,3688.1,35.0]
[1717996104571,1.77967595,3689.3,3688.1,35.0]
[1717996104572,2.3703,3688.3,3688.1,35.0]
[1717996104773,3.1663,3688.3,3688.1,35.0]
[1717996107689,3.1663,3688.3,3687.9,0.28304058]
[1717996107886,0.05550024,3688.2,3687.9,0.28304058]
[1717996108077,3.1663,3688.3,3687.9,0.28304058]
[1717996108313,0.05550024,3688.2,3688.0,35.0]
[1717996108577,3.1663,3688.3,3688.0,35.0]
[1717996108777,2.4918,3688.1,3687.9,0.28304058]
[1717996108978,1.35541,3689.0,3687.9,0.28304058]
[1717996108979,4.64354,3688.0,3687.9,0.28304058]
[1717996109181,3.90297137,3688.0,3687.9,0.28304058]
[1717996109378,4.69897137,3688.0,3687.9,0.28304058]
[1717996109789,4.64354,3688.0,3687.9,0.28304058]
[1717996115297,4.69713882,3688.0,3687.9,0.28304058]
[1717996116703,4.64354,3688.0,3687.9,0.28304058]
[1717996120881,4.69720798,3688.0,3687.9,0.28304058]
[1717996121482,4.64354,3688.0,3687.9,0.28304058]
[1717996124503,3.84754,3688.0,3687.9,0.28304058]
[1717996124704,4.64354,3688.0,3687.9,0.28304058]
[1717996126231,2.15174,3688.0,3687.9,0.28304058]
[1717996128021,4.48194,3688.0,3687.9,0.28304058]
[1717996128930,3.68594,3688.0,3687.9,0.28304058]
[1717996129097,4.48194,3688.0,3687.9,0.28304058]
[1717996132433,3.68594,3688.0,3687.9,0.28304058]
[1717996132637,4.48194,3688.0,3687.9,0.28304058]
[1717996139757,4.5343961,3688.0,3687.9,35.28304058]
[1717996140268,4.48194,3688.0,3687.9,35.28304058]
[1717996142777,4.48194,3688.0,3687.9,0.28304058]
[1717996143134,4.53443421,3688.0,3687.9,35.28304058]
[1717996143397,4.48194,3688.0,3687.9,35.28304058]
[1717996143872,4.48194,3688.0,3687.9,0.28304058]
[1717996144232,4.53443421,3688.0,3687.9,0.28304058]
[1717996144637,2.15174,3688.0,3687.9,0.28304058]
[1717996147890,2.2041706,3688.0,3687.9,35.28304058]
[1717996148394,2.15174,3688.0,3687.9,35.28304058]
[1717996149290,1.35564,3688.3,3687.9,0.28304058]
[1717996149440,0.796,3688.1,3687.9,0.28304058]
[1717996149652,0.796,3688.1,3687.9,35.28304058]
[1717996149872,0.05071494,3688.0,3687.9,35.28304058]
[1717996150073,0.796,3688.1,3687.9,35.28304058]
[1717996150370,0.796,3688.1,3687.9,0.28304058]
[1717996150784,0.05074034,3688.0,3687.9,0.28304058]
[1717996150982,0.796,3688.1,3687.9,0.28304058]